fUST/lending_fUST_20260111
["ID","MTS","AMOUNT","RATE_DAILY","PERIOD"]
[401314176,1768128644514,-1500.0,0.00015864,2]
[401314177,1768128644523,-555.48898116,0.0001589,2]
[401314178,1768128644533,-2500.0,0.0001589,2]
[401314179,1768128644543,-2500.0,0.0001589,2]
[401314180,1768128644552,-2500.0,0.0001589,2]
[401314181,1768128644562,-2500.0,0.0001589,2]
[401314182,1768128644572,-2134.65901332,0.0001589,2]
[401314183,1768128644581,-2500.0,0.0001589,2]
[401314184,1768128644590,-2500.0,0.0001589,2]
[401314185,1768128644600,-3000.0,0.00016012,2]
[401314186,1768128644610,-3000.0,0.00016012,2]
[401314187,1768128644620,-3000.0,0.00016012,2]
[401314188,1768128644630,-3000.0,0.00016012,2]
[401314189,1768128644639,-3000.0,0.00016012,2]
[401314190,1768128644649,-3000.0,0.00016012,2]
[401314191,1768128644658,-3000.0,0.00016012,2]
[401314192,1768128644667,-1002.56714759,0.00016012,2]
[401314193,1768128644677,-1000.0,0.00016081,2]
[401314194,1768128644687,-492.0,0.00016081,2]
[401314195,1768128644696,-1600.00734843,0.00016164,2]
[401314196,1768128644705,-348.73,0.000163,2]
[401314197,1768128644715,-2046.0,0.00016313,2]
[401314198,1768128644725,-1800.0,0.00016412,2]
[401314199,1768128644735,-500.0,0.00016438,2]
[401314200,1768128644744,-500.0,0.00016438,2]
[401314201,1768128644753,-500.0,0.00016438,2]
[401314202,1768128644762,-500.0,0.00016438,2]
[401314203,1768128644772,-500.0,0.00016438,2]
[401314204,1768128644780,-500.0,0.00016438,2]
[401314205,1768128644790,-281.92486594,0.00016438,2]
[401314206,1768128644799,-594.49843147,0.00016438,2]
[401314207,1768128644809,-500.0,0.00016438,2]
[401314208,1768128644819,-3002.60955562,0.00016438,2]
[401314209,1768128644829,-1552.92932298,0.00016438,2]
[401314210,1768128644838,-2000.0,0.00016438,2]
[401314211,1768128644848,-3000.0,0.00016438,2]
[401314212,1768128644857,-3000.0,0.00016438,2]
[401314213,1768128644867,-3000.0,0.00016438,2]
[401314214,1768128644876,-260.15865923,0.00016438,2]
[401314215,1768128644886,-3500.0,0.0001656,2]
[401314216,1768128644895,-3500.0,0.0001656,2]
[401314217,1768128644905,-3500.0,0.0001656,2]
[401314218,1768128644914,-3500.0,0.0001656,2]
[401314219,1768128644929,-3500.0,0.0001656,2]
[401314220,1768128644939,-3500.0,0.0001656,2]
[401314221,1768128644948,-3500.0,0.0001656,2]
[401314222,1768128644958,-348.73,0.000168,2]
[401314223,1768128644968,-1003.0,0.0001696,2]
[401314224,1768128644978,-2578.16970935,0.00016986,2]
[401314225,1768128644988,-3500.0,0.00016986,2]
[401314226,1768128644997,-3500.0,0.00016986,2]
[401314227,1768128645007,-999.99999901,0.00017,2]
[401314228,1768128645016,-18130.41512496,0.00017079,2]
[401314229,1768128645026,-4000.0,0.00017108,2]
[401314230,1768128645036,-3378.46600243,0.00017108,2]
[401314231,1768128645046,-4000.0,0.00017108,2]
[401314232,1768128645055,-1500.0,0.00017108,2]
[401314233,1768128645065,-462.04250286,0.00017108,2]
[401314234,1768128645074,-4000.0,0.00017108,2]
[401314235,1768128645084,-3500.0,0.00017108,2]
[401314236,1768128645093,-348.73,0.000173,2]
[401314237,1768128645103,-5000.0,0.00017412,2]
[401314238,1768128645113,-468.6,0.00017508,2]
[401314239,1768128645123,-2500.0,0.00017534,2]
[401314240,1768128645134,-3067.54835774,0.00017534,2]
[401314241,1768128645143,-4642.48470631,0.00017656,2]
[401314242,1768128645153,-4500.0,0.00017656,2]
[401314243,1768128645163,-2000.0,0.00017656,2]
[401314244,1768128645173,-1000.0,0.00017689,2]
[401314245,1768128645183,-791.0,0.00017689,2]
[401314246,1768128645192,-1087.80747027,0.00017741,2]
[401314247,1768128645202,-348.73,0.000178,2]
[401314248,1768128645212,-163.43551009,0.00018082,3]
[401314249,1768128645222,-995.04726907,0.00018204,2]
[401314250,1768128645231,-348.73,0.000183,2]
[401314251,1768128645242,-585.11053,0.00018493,2]
[401314253,1768128645251,-5000.0,0.00018863,2]
[401314254,1768128645262,-348.73,0.000189,2]
[401314255,1768128645272,-303.10001603,0.000189,2]
[401314256,1768128645369,-303.10001603,0.00019089,2]
[401314257,1768128645379,-221.86,0.00019178,2]
[401314258,1768128645389,-506.7938,0.00019178,2]
[401314259,1768128645398,-200.0,0.00019178,2]
[401314261,1768128645408,-313.59,0.00019178,2]
[401314262,1768128645418,-500.0,0.00019178,2]
[401314263,1768128645427,-2140.41,0.000192,2]
[401314264,1768128645436,-13367.01,0.000192,2]
[401314265,1768128645446,-167.58,0.000192,2]
[401314266,1768128645456,-303.10001603,0.00019278,2]
[401314267,1768128645467,-468.6,0.00019286,2]
[401314268,1768128645478,-348.73,0.000194,2]
[401314269,1768128645488,-1000.0,0.00019458,2]
[401314270,1768128645500,-1000.0,0.00019458,2]
[401314271,1768128645511,-303.10001603,0.00019467,2]
[401314272,1768128645522,-163.88,0.000195,2]
[401314273,1768128645531,-166.96,0.000195,2]
[401314274,1768128645543,-303.10001603,0.00019656,2]
[401314275,1768128645553,-454.65002405,0.00019845,4]
[401314276,1768128645562,-348.73,0.000199,2]
[401314277,1768128645571,-151.97857558,0.0002,2]
[401314278,1768128645580,-506.7938,0.0002,4]
[401314279,1768128645590,-454.65002405,0.00020034,4]
[401314280,1768128645600,-1087.80747027,0.00020118,2]
[401314281,1768128645609,-454.65002405,0.00020223,4]
[401314282,1768128645618,-348.73,0.000204,2]
[401314283,1768128645628,-506.7938,0.00020411,5]
[401314284,1768128645637,-454.65002405,0.00020412,4]
[401314285,1768128645647,-301.57435521,0.00020601,4]
[401314286,1768128645656,-348.73,0.000209,2]
[401314287,1768128645666,-18130.41512496,0.00021014,2]
[401314288,1768128645675,-468.6,0.00021064,2]
[401314289,1768128645684,-2870.56440789,0.0002131,2]
[401314290,1768128645693,-348.73,0.000214,2]
[401314291,1768128645703,-1000.0,0.00021403,10]
[401314292,1768128645712,-1000.0,0.00021403,10]
[401314293,1768128645722,-579.0,0.00021403,10]
[401314294,1768128645731,-348.73,0.000219,2]
[401314295,1768128645740,-585.11053,0.00021918,2]
[401314296,1768128645750,-152.90727816,0.00021918,2]
[401314297,1768128645759,-281.87,0.00021967,2]
[401314298,1768128645770,-348.73,0.000224,2]
[401314299,1768128645780,-1087.80747027,0.00022495,2]
[401314300,1768128645790,-468.6,0.00022842,2]
[401314301,1768128645799,-348.73,0.00023,2]
[401314302,1768128645808,-348.73,0.000235,2]
[401314303,1768128645818,-1000.0,0.00023544,10]
[401314304,1768128645827,-1000.0,0.00023544,10]
[401314305,1768128645836,-1000.0,0.00023544,10]
[401314306,1768128645846,-13367.01,0.000236,2]
[401314307,1768128645855,-348.73,0.00024,2]
[401314309,1768128645865,-348.73,0.000245,2]
[401314310,1768128645875,-468.6,0.0002462,2]
[401314311,1768128645884,-500.0,0.00024658,2]
[401314312,1768128645894,-500.0,0.00024795,2]
[401314313,1768128645905,-76526.0115688,0.000248,2]
[401314314,1768128645915,-1087.80747027,0.00024872,2]
[401314315,1768128645928,-400097.821185,0.000249,2]
[401314316,1768128645939,-500.0,0.00024932,2]
[401314317,1768128645949,-348.73,0.00025,2]
[401314318,1768128645959,-500.0,0.00025069,2]
[401314319,1768128645970,-250.0,0.00025205,2]
[401314320,1768128645981,-500.0,0.00025206,2]
[401314321,1768128645990,-585.11053,0.00025342,2]
[401314322,1768128646002,-500.0,0.00025343,2]
[401314323,1768128646011,-258.77529652,0.0002537,14]
[401314324,1768128646021,-500.0,0.0002548,2]
[401314325,1768128646030,-348.73,0.000255,2]
[401314326,1768128646040,-500.0,0.00025617,2]
[401314327,1768128646050,-350.0,0.00025753,2]
[401314328,1768128646059,-255.99235489,0.00025754,2]
[401314329,1768128646068,-2000.51544348,0.0002587,2]
[401314330,1768128646078,-1000.0,0.00025898,10]
[401314331,1768128646087,-1000.0,0.00025898,10]
[401314332,1768128646096,-1000.0,0.00025898,10]
[401314333,1768128646106,-715.0,0.00025898,10]
[401314334,1768128646115,-348.73,0.00026,2]
[401314335,1768128646124,-450.0,0.00026301,2]
[401314336,1768128646134,-468.6,0.00026398,2]
[401314337,1768128646144,-348.73,0.000265,2]
[401314338,1768128646154,-550.0,0.00026849,2]
[401314339,1768128646164,-183.0,0.00027014,22]
[401314340,1768128646173,-2140.41,0.000271,14]
[401314341,1768128646183,-348.73,0.000271,2]
[401314342,1768128646192,-181.17141011,0.00027119,2]
[401314343,1768128646201,-2870.56440789,0.00027215,2]
[401314344,1768128646210,-1087.80747027,0.00027248,2]
[401314345,1768128646220,-702.10519323,0.00027397,5]
[401314346,1768128646229,-300.0,0.00027397,2]
[401314347,1768128646239,-300.0,0.00027397,2]
[401314348,1768128646247,-300.0,0.00027397,2]
[401314349,1768128646256,-300.0,0.00027397,2]
[401314350,1768128646265,-348.73,0.000276,2]
[401314351,1768128646275,-5000.0,0.00028037,2]
[401314352,1768128646283,-348.73,0.000281,2]
[401314353,1768128646292,-468.6,0.00028175,3]
[401314354,1768128646301,-1000.0,0.00028488,30]
[401314355,1768128646310,-1000.0,0.00028488,30]
[401314356,1768128646319,-1000.0,0.00028488,30]
[401314357,1768128646329,-348.73,0.000286,2]
[401314358,1768128646338,-212.0,0.00028658,30]
[401314359,1768128646348,-585.11053,0.00028767,60]
[401314360,1768128646357,-13367.01,0.000288,2]
[401314361,1768128646367,-155.5739919,0.00028883,5]
[401314362,1768128646382,-8382.93313115,0.0002902,2]
[401314363,1768128646391,-348.73,0.000291,2]
[401314364,1768128646401,-348.73,0.000296,2]
[401314365,1768128646410,-1087.80747027,0.00029625,2]
[401314366,1768128646419,-155.57399191,0.00029771,5]
[401314367,1768128646429,-2140.41,0.000299,14]
[401314368,1768128646438,-468.6,0.00029953,4]
[401314369,1768128646447,-151.0,0.00030137,120]
[401314370,1768128646456,-300.0,0.00030137,5]
[401314371,1768128646465,-151.0,0.00030137,14]
[401314372,1768128646475,-5000.0,0.00030203,2]
[401314373,1768128646485,-234.89,0.00030206,2]
[401314374,1768128646496,-155.57399191,0.00030692,10]
[401314375,1768128646506,-163.0,0.00030849,42]
[401314376,1768128646515,-13367.01,0.000309,2]
[401314377,1768128646524,-500.0,0.00031041,7]
[401314378,1768128646534,-155.5739919,0.00031649,10]
[401314379,1768128646543,-468.6,0.00031731,5]
[401314380,1768128646553,-1087.80747027,0.00032002,2]
[401314381,1768128646562,-536.72987461,0.00032022,7]
[401314382,1768128646571,-5000.0,0.0003237,2]
[401314383,1768128646581,-171.0,0.000324,120]
[401314384,1768128646590,-364.0,0.00032514,2]
[401314385,1768128646600,-2140.41,0.000326,14]
[401314386,1768128646610,-155.57399191,0.00032628,10]
[401314387,1768128646619,-356.0,0.00032723,7]
[401314388,1768128646628,-354.0,0.00032799,2]
[401314389,1768128646637,-354.0,0.00032814,2]
[401314390,1768128646646,-172.824008,0.00032821,31]
[401314391,1768128646656,-151.0,0.00032821,31]
[401314392,1768128646666,-151.0,0.00032821,31]
[401314393,1768128646676,-151.0,0.00032821,31]
[401314394,1768128646687,-999.0,0.00032876,120]
[401314395,1768128646699,-569.83,0.00032877,10]
[401314396,1768128646709,-474.86,0.00032877,10]
[401314397,1768128646718,-450.0,0.00032877,5]
[401314398,1768128646728,-432.0,0.00032889,2]
[401314399,1768128646738,-151.0,0.00032917,2]
[401314400,1768128646747,-151.0,0.00032917,2]
[401314401,1768128646757,-151.0,0.00032917,2]
[401314402,1768128646767,-151.0,0.00032917,2]
[401314403,1768128646777,-151.0,0.00032917,2]
[401314404,1768128646787,-151.0,0.00032917,2]
[401314405,1768128646796,-151.0,0.00032917,2]
[401314406,1768128646806,-151.0,0.00032917,2]
[401314407,1768128646816,-151.0,0.00032917,2]
[401314408,1768128646826,-151.0,0.00032917,2]
[401314409,1768128646836,-151.0,0.00032917,2]
[401314410,1768128646847,-151.0,0.00032917,2]
[401314411,1768128646857,-151.0,0.00032917,2]
[401314412,1768128646866,-151.0,0.00032917,2]
[401314413,1768128646876,-151.0,0.00032917,2]
[401314414,1768128646886,-151.0,0.00032917,2]
[401314415,1768128646895,-151.0,0.00032917,2]
[401314416,1768128646905,-151.0,0.00032917,2]
[401314417,1768128646915,-151.0,0.00032917,2]
[401314418,1768128646929,-151.0,0.00032917,2]
[401314419,1768128646939,-151.0,0.00032917,2]
[401314420,1768128646951,-151.0,0.00032917,2]
[401314421,1768128646963,-151.0,0.00032917,2]
[401314422,1768128646973,-151.0,0.00032917,2]
[401314423,1768128646983,-151.0,0.00032917,2]
[401314424,1768128646993,-151.0,0.00032917,2]
[401314425,1768128647003,-151.0,0.00032917,2]
[401314426,1768128647012,-151.0,0.00032917,2]
[401314427,1768128647021,-151.0,0.00032917,2]
[401314428,1768128647031,-151.0,0.00032917,2]
[401314429,1768128647041,-151.0,0.00032917,2]
[401314430,1768128647051,-151.0,0.00032917,2]
[401314431,1768128647060,-151.0,0.00032917,2]
[401314432,1768128647070,-151.0,0.00032917,2]
[401314433,1768128647080,-151.0,0.00032917,2]
[401314434,1768128647089,-151.0,0.00032917,2]
[401314435,1768128647097,-151.0,0.00032917,2]
[401314436,1768128647107,-151.0,0.00032917,2]
[401314437,1768128647116,-151.0,0.00032917,2]
[401314438,1768128647125,-151.0,0.00032917,2]
[401314439,1768128647134,-64142.26753541,0.00033,10]
[401314440,1768128647143,-1041.66666667,0.00033,10]
[401314441,1768128647152,-174.0,0.00033041,57]
[401314442,1768128647162,-354.0,0.00033067,2]
[401314443,1768128647171,-2870.56440789,0.0003312,2]
[401314444,1768128647181,-487.47723609,0.00033182,2]
[401314445,1768128647194,-180.93086226,0.000332,117]
[401314446,1768128647203,-180.93086222,0.000332,117]
[401314447,1768128647213,-180.93086222,0.000332,117]
[401314448,1768128647223,-180.93086222,0.000332,117]
[401314449,1768128647233,-1112.0,0.00033218,2]
[401314450,1768128647244,-1112.0,0.00033219,2]
[401314451,1768128647254,-1045039.0068,0.0003322,30]
[401314452,1768128647265,-151.0,0.0003322,31]
[401314453,1768128647274,-151.0,0.0003322,31]
[401314454,1768128647283,-163.313773,0.0003322,31]
[401314455,1768128647293,-151.0,0.0003322,31]
[401314456,1768128647302,-151.0,0.0003322,31]
[401314457,1768128647313,-151.0,0.0003322,31]
[401314458,1768128647322,-151.0,0.0003322,31]
[401314459,1768128647333,-151.0,0.0003322,31]
[401314460,1768128647343,-151.0,0.0003322,31]
[401314461,1768128647354,-264.224,0.0003322,31]
[401314462,1768128647365,-169.882376,0.0003322,31]
[401314463,1768128647375,-264.224,0.0003322,31]
[401314464,1768128647384,-264.224,0.0003322,31]
[401314465,1768128647395,-264.224,0.0003322,31]
[401314466,1768128647487,-161.096358,0.0003322,31]
[401314467,1768128647497,-151.0,0.0003322,31]
[401314468,1768128647507,-151.0,0.0003322,7]
[401314469,1768128647516,-382.637039,0.0003322,31]
[401314470,1768128647525,-382.637039,0.0003322,31]
[401314471,1768128647534,-382.637039,0.0003322,31]
[401314472,1768128647544,-382.637039,0.0003322,31]
[401314473,1768128647554,-151.0,0.0003322,31]
[401314474,1768128647563,-151.0,0.0003322,31]
[401314475,1768128647572,-151.0,0.0003322,31]
[401314476,1768128647581,-151.0,0.0003322,31]
[401314477,1768128647590,-151.0,0.0003322,31]
[401314478,1768128647599,-151.0,0.0003322,31]
[401314479,1768128647608,-156.82101,0.0003322,31]
[401314480,1768128647617,-151.0,0.0003322,31]
[401314481,1768128647626,-151.0,0.0003322,7]
[401314482,1768128647635,-151.0,0.0003322,7]
[401314483,1768128647644,-151.0,0.0003322,31]
[401314484,1768128647654,-700.258706,0.0003322,31]
[401314485,1768128647663,-700.258706,0.0003322,31]
[401314486,1768128647672,-700.258706,0.0003322,31]
[401314487,1768128647681,-151.0,0.0003322,31]
[401314488,1768128647691,-700.258706,0.0003322,31]
[401314489,1768128647700,-151.0,0.0003322,31]
[401314490,1768128647709,-151.0,0.0003322,31]
[401314491,1768128647718,-151.292503,0.0003322,31]
[401314492,1768128647727,-151.0,0.0003322,31]
[401314493,1768128647736,-151.0,0.0003322,31]
[401314494,1768128647745,-151.0,0.0003322,31]
[401314495,1768128647755,-301.393574,0.0003322,31]
[401314496,1768128647765,-151.0,0.0003322,31]
[401314497,1768128647775,-151.0,0.0003322,31]
[401314498,1768128647784,-170.54126,0.0003322,31]
[401314499,1768128647794,-151.0,0.0003322,31]
[401314500,1768128647803,-164.871038,0.0003322,31]
[401314501,1768128647812,-152.567384,0.0003322,31]
[401314502,1768128647822,-151.0,0.0003322,31]
[401314503,1768128647831,-728.329358,0.0003322,31]
[401314504,1768128647841,-728.329358,0.0003322,31]
[401314505,1768128647850,-728.329358,0.0003322,31]
[401314506,1768128647859,-728.329358,0.0003322,31]
[401314507,1768128647869,-151.0,0.0003322,31]
[401314508,1768128647878,-240.800368,0.0003322,31]
[401314509,1768128647887,-160.002934,0.0003322,31]
[401314510,1768128647896,-151.0,0.0003322,2]
[401314511,1768128647906,-200.586455,0.0003322,31]
[401314512,1768128647915,-151.0,0.0003322,31]
[401314513,1768128647926,-151.0,0.0003322,31]
[401314514,1768128647936,-151.0,0.0003322,31]
[401314515,1768128647945,-151.0,0.0003322,31]
[401314516,1768128647955,-161.662681,0.0003322,31]
[401314517,1768128647965,-151.0,0.0003322,31]
[401314518,1768128647975,-151.0,0.0003322,31]
[401314519,1768128647984,-151.0,0.0003322,31]
[401314520,1768128647993,-151.0,0.0003322,31]
[401314521,1768128648005,-151.0,0.0003322,31]
[401314522,1768128648015,-13367.01,0.000334,14]
[401314523,1768128648024,-468.6,0.00033509,6]
[401314524,1768128648033,-356.0,0.00033601,7]
[401314525,1768128648043,-801.82496169,0.00033611,2]
[401314526,1768128648053,-155.5739919,0.00033637,10]
[401314527,1768128648063,-210.0,0.00033699,5]
[401314528,1768128648072,-163.38,0.000337,10]
[401314529,1768128648081,-354.0,0.00033731,2]
[401314530,1768128648090,-999.0,0.00033972,120]
[401314531,1768128648100,-800.0,0.00033975,2]
[401314532,1768128648109,-1041.66666667,0.00034,30]
[401314533,1768128648118,-800.0,0.00034012,2]
[401314534,1768128648128,-1002.20117456,0.00034074,15]
[401314535,1768128648139,-2563.81814958,0.00034101,2]
[401314536,1768128648148,-363.97,0.00034113,60]
[401314537,1768128648158,-363.97,0.00034213,60]
[401314538,1768128648167,-354.0,0.00034278,2]
[401314539,1768128648176,-629.16420479,0.00034294,2]
[401314540,1768128648185,-363.97,0.00034313,60]
[401314541,1768128648196,-2563.81814958,0.00034317,2]
[401314542,1768128648205,-215.966,0.00034344,38]
[401314543,1768128648215,-800.0,0.00034348,2]
[401314544,1768128648225,-304.60761834,0.00034376,2]
[401314545,1768128648235,-1218.43047336,0.00034376,2]
[401314546,1768128648244,-2741.46856505,0.00034376,2]
[401314547,1768128648253,-4873.72189343,0.00034376,2]
[401314548,1768128648263,-7615.19045848,0.00034376,2]
[401314549,1768128648272,-385.52054131,0.00034376,2]
[401314550,1768128648281,-1542.08216526,0.00034376,2]
[401314551,1768128648291,-3469.68487183,0.00034376,2]
[401314552,1768128648300,-6168.32866104,0.00034376,2]
[401314553,1768128648309,-10965.87426022,0.00034376,2]
[401314554,1768128648318,-9638.01353287,0.00034376,2]
[401314555,1768128648328,-1087.80747027,0.00034379,2]
[401314556,1768128648337,-434.81244343,0.00034405,7]
[401314557,1768128648346,-6221.35088996,0.00034405,7]
[401314558,1768128648355,-712.72705117,0.00034405,7]
[401314559,1768128648364,-6950.08101294,0.00034405,7]
[401314560,1768128648374,-1739.24977373,0.00034405,7]
[401314561,1768128648384,-3913.3119909,0.00034405,7]
[401314562,1768128648394,-2850.90820468,0.00034405,7]
[401314563,1768128648405,-363.985,0.00034413,60]
[401314564,1768128648415,-547.0,0.00034418,30]
[401314565,1768128648426,-756.0,0.00034418,30]
[401314566,1768128648436,-720.0,0.00034418,30]
[401314567,1768128648445,-354.0,0.00034474,2]
[401314568,1768128648455,-1756.0997728,0.000345,2]
[401314569,1768128648464,-31232.1068177,0.000345,2]
[401314570,1768128648474,-4304.7075427,0.000345,2]
[401314571,1768128648484,-354.0,0.00034501,7]
[401314572,1768128648493,-270.0,0.00034521,5]
[401314573,1768128648504,-5000.0,0.00034536,3]
[401314574,1768128648513,-2140.41,0.000346,30]
[401314575,1768128648522,-932.46362,0.000346,16]
[401314576,1768128648531,-1095.40809829,0.00034632,7]
[401314577,1768128648541,-151.0,0.00034632,7]
[401314578,1768128648552,-445.202766,0.00034632,7]
[401314579,1768128648563,-250.0,0.00034632,7]
[401314580,1768128648573,-250.0,0.00034632,7]
[401314581,1768128648583,-461.67526834,0.00034632,7]
[401314582,1768128648593,-250.0,0.00034632,7]
[401314583,1768128648602,-478.75725327,0.00034632,7]
[401314584,1768128648612,-496.47127164,0.00034632,7]
[401314585,1768128648621,-2150.738,0.00034632,7]
[401314586,1768128648630,-151.0,0.00034632,7]
[401314587,1768128648639,-514.84070869,0.00034632,7]
[401314588,1768128648649,-153.90472729,0.00034632,7]
[401314589,1768128648658,-151.0,0.00034632,7]
[401314590,1768128648668,-533.88981491,0.00034632,7]
[401314591,1768128648677,-250.15738416,0.00034632,7]
[401314592,1768128648686,-250.0,0.00034632,7]
[401314593,1768128648696,-562.55157284,0.00034632,7]
[401314594,1768128648705,-151.0,0.00034632,7]
[401314595,1768128648715,-151.0,0.00034632,7]
[401314596,1768128648724,-151.0,0.00034632,7]
[401314597,1768128648733,-151.0,0.00034632,7]
[401314598,1768128648743,-151.0,0.00034632,7]
[401314599,1768128648753,-151.0,0.00034632,7]
[401314600,1768128648762,-151.0,0.00034632,7]
[401314601,1768128648771,-151.0,0.00034632,7]
[401314602,1768128648779,-151.0,0.00034632,7]
[401314603,1768128648788,-151.0,0.00034632,7]
[401314604,1768128648797,-151.0,0.00034632,7]
[401314605,1768128648806,-151.0,0.00034632,7]
[401314606,1768128648815,-151.0,0.00034632,7]
[401314607,1768128648824,-151.0,0.00034632,7]
[401314608,1768128648832,-151.0,0.00034632,7]
[401314609,1768128648841,-151.0,0.00034632,7]
[401314610,1768128648850,-151.0,0.00034632,7]
[401314611,1768128648859,-151.0,0.00034632,7]
[401314612,1768128648869,-151.0,0.00034632,7]
[401314613,1768128648878,-154.07167593,0.00034632,7]
[401314614,1768128648888,-250.0,0.00034632,7]
[401314615,1768128648897,-271.40103972,0.00034632,7]
[401314616,1768128648905,-162.380719,0.00034632,7]
[401314617,1768128648913,-223.13477496,0.00034632,7]
[401314618,1768128648923,-151.0,0.0003465,7]
[401314619,1768128648935,-151.0,0.0003465,7]
[401314620,1768128648945,-151.76651056,0.0003465,7]
[401314621,1768128648955,-1635222.19407531,0.0003465,2]
[401314622,1768128649074,-3657.07657638,0.0003465,2]
[401314623,1768128649085,-4840.4598424,0.0003465,2]
[401314624,1768128649096,-1612.52104886,0.0003465,2]
[401314625,1768128649107,-2694.03393832,0.0003465,2]
[401314626,1768128649518,-508.05064706,0.00011209,2]
[401314627,1768128649527,-28.84113546,0.00013209,2]
[401314628,1768128649574,-556.70876284,0.00013209,2]
[401314629,1768128649584,-2660.7558679,0.00014151,2]
[401314630,1768128649595,-663.04914955,0.00015209,2]
[401314631,1768128649606,-740.54840079,0.00017209,2]
[401314632,1768128649616,-818.04765204,0.00019209,2]
[401314633,1768128649626,-895.54690329,0.00021209,2]
[401314634,1768128649635,-973.04615453,0.00023209,2]
[401314635,1768128649644,-1050.54540578,0.00025209,2]
[401314636,1768128649655,-1128.04465702,0.00027209,2]
[401314637,1768128649665,-1205.54390827,0.00029209,2]
[401314638,1768128649674,-1283.04315952,0.00031209,2]
[401314639,1768128649684,-1360.54241076,0.00033209,120]
[401314640,1768128649694,-21295.91617296,0.0003465,2]
[401314641,1768128715676,-161.974,9.025e-05,2]
[401314644,1768128994346,151.0,0.00030137,120]
[401314645,1768129051953,151.0,0.00030137,120]
[401314646,1768129204027,278.98,5e-05,2]
[401314647,1768129204700,278.98,5.5e-05,2]
[401314648,1768129205320,278.98,6e-05,2]
[401314649,1768129205958,278.98,6.5e-05,2]
[401314650,1768129206455,278.98,7.1e-05,2]
[401314651,1768129207025,278.98,7.6e-05,2]
[401314652,1768129208162,278.98,8.1e-05,2]
[401314653,1768129208765,278.98,8.6e-05,2]
[401314654,1768129331557,-175.472,9.025e-05,2]
[401314655,1768129333514,1671.94,0.00030137,120]
[401314656,1768129348583,334.0,0.00030137,120]
[401314657,1768129521066,219.57265553,0.0003,120]
[401314658,1768129680140,423.22,5.974e-05,2]
[401314659,1768129680468,423.22,5.974e-05,2]
[401314688,1768129831902,-278.98,9.1e-05,2]
[401314690,1768129831911,-1011.17168929,9.1e-05,2]
[401314692,1768129831920,-547.0,9.1e-05,2]
[401314694,1768129831929,-300.0,9.106e-05,2]
[401314695,1768129831938,-300.0,9.106e-05,2]
[401314696,1768129831947,-3794.43319546,9.107e-05,2]
[401314698,1768129837923,-500.0,9.106e-05,2]
[401314699,1768129837933,-187.98945259,9.106e-05,2]
[401314700,1768129837942,-500.0,9.106e-05,2]
[401314701,1768129837951,-500.0,9.106e-05,2]
[401314702,1768129837960,-321.16409229,9.106e-05,2]
[401314703,1768129837970,-46205.56680454,9.107e-05,2]
[401314704,1768129837979,-187.22936238,9.107e-05,2]
[401314705,1768129837988,-500.0,9.107e-05,2]
[401314706,1768129837998,-500.0,9.107e-05,2]
[401314707,1768129838007,-500.0,9.107e-05,2]
[401314708,1768129838017,-500.0,9.107e-05,2]
[401314709,1768129838027,-500.0,9.107e-05,2]
[401314710,1768129838038,-500.0,9.107e-05,2]
[401314711,1768129838051,-500.0,9.107e-05,2]
[401314712,1768129838064,-500.0,9.107e-05,2]